bitfinex-derivatives/quotes_SOLF0:USTF0_20251224
["timestamp","ask_amount","ask_price","bid_price","bid_amount"]
[1766537155598,3.33,123.92,123.88,7.2694]
[1766537156610,3.33,123.94,123.87,113.13580715]
[1766537156810,3.33,123.94,123.89,0.05293133]
[1766537157701,3.33,123.94,123.9,7.268]
[1766537158606,3.33,123.94,123.89,0.05293133]
[1766537158607,4.59204909,123.96,123.91,7.2674]
[1766537158807,4.59204909,123.96,123.92,0.05871389]
[1766537159009,3.33,123.95,123.92,0.05871389]
[1766537159209,3.33,123.95,123.89,7.2685]
[1766537160199,3.33,123.95,123.91,0.05257994]
[1766537160399,0.05438123,123.93,123.91,0.05257994]
[1766537165707,0.05438123,123.93,123.91,7.31997994]
[1766537165907,3.33,123.95,123.91,7.31997994]
[1766537166108,3.33,123.95,123.91,0.05257994]
[1766537166402,3.46,123.97,123.92,7.2667]
[1766537166613,3.46,123.97,123.9,113.0586]
[1766537167018,3.46,123.97,123.92,0.0615646]
[1766537167206,3.46,123.97,123.93,7.2664]
[1766537169216,98.8,123.99,123.94,7.2658]
[1766537169418,3.46,123.98,123.95,0.05711584]
[1766537170118,3.46,123.98,123.94,7.2658]
[1766537171212,0.05913794,123.97,123.95,0.05703359]
[1766537171516,0.05913794,123.97,123.94,7.2658]
[1766537172512,0.05913794,123.97,123.94,7.32274457]
[1766537173216,3.51913794,123.97,123.88,113.0771]
[1766537173412,3.46,123.95,123.88,95.3]
[1766537173612,3.46,123.91,123.84,113.1092]
[1766537173817,3.46,123.91,123.86,7.2701]
[1766537174319,0.05696995,123.9,123.87,0.05458999]
[1766537178322,3.46,123.89,123.87,0.00458999]
[1766537178617,0.05696995,123.9,123.87,0.00458999]
[1766537178820,3.46,123.93,123.87,7.27448999]
[1766537179920,0.06003722,123.91,123.87,7.27448999]
[1766537183816,3.52003722,123.91,123.87,0.00458999]
[1766537184226,1.26204909,123.9,123.87,0.00458999]
[1766537184926,3.52003722,123.91,123.87,7.27438999]
[1766537185121,0.06003722,123.91,123.87,7.27438999]
[1766537190227,3.46,123.89,123.87,0.00458999]
[1766537192628,3.21,123.87,123.81,7.2731]
[1766537192835,3.21,123.87,123.79,208.4761]
[1766537193421,3.21,123.87,123.82,7.2728]
[1766537193623,0.05769116,123.86,123.83,0.06127408]
[1766537195828,3.26769116,123.86,123.8,7.2736]
[1766537196028,3.21,123.86,123.8,7.2736]
[1766537196237,3.21,123.89,123.79,113.1624]
[1766537196728,0.05859151,123.85,123.83,0.05968449]
[1766537197828,0.05859151,123.85,123.79,95.34]
[1766537198634,0.05859151,123.85,123.8,7.2736]
[1766537198935,0.05859151,123.85,123.81,0.05992167]
[1766537199536,3.46859151,123.85,123.81,0.05992167]
[1766537204535,3.46859151,123.85,123.8,7.274]
[1766537205641,3.46859151,123.85,123.81,0.0591626]
[1766537206144,1.97300711,123.89,123.81,0.0591626]
[1766537206442,95.34,123.9,123.8,113.15]
[1766537206641,95.34,123.9,123.83,7.2723]
[1766537207131,0.05572389,123.88,123.85,0.06080926]
[1766537208029,0.05572389,123.88,123.85,0.00080926]
[1766537208237,3.41,123.87,123.83,7.2723]
[1766537209143,3.41,123.87,123.84,0.06069796]
[1766537209538,3.41,123.87,123.84,0.00069796]
[1766537214648,0.05572389,123.88,123.84,0.00069796]
[1766537215552,0.05572389,123.88,123.85,7.2709]
[1766537215945,3.46572389,123.88,123.84,0.00069796]
[1766537218653,3.46572389,123.88,123.84,7.27239796]
[1766537219452,0.05572389,123.88,123.84,7.27239796]
[1766537219755,0.05572389,123.88,123.85,7.271]
[1766537220141,3.41,123.9,123.86,7.2705]
[1766537220353,95.36,123.91,123.86,7.2705]
[1766537220954,3.41,123.92,123.87,7.2697]
[1766537221142,0.06112174,123.91,123.88,0.05491786]
[1766537221661,0.00112174,123.91,123.88,0.05491786]
[1766537222046,0.00112174,123.91,123.88,95.41491786]
[1766537222248,0.00112174,123.91,123.89,7.2685]
[1766537222557,3.33,123.95,123.88,208.49301786]
[1766537223059,3.33,123.98,123.91,7.2674]
[1766537223353,0.05229762,123.96,123.93,0.05842855]
[1766537223658,3.38229762,123.96,123.93,0.05842855]
[1766537223842,3.38229762,123.96,123.89,7.2684]
[1766537224045,3.33,123.96,123.89,7.2684]
[1766537224863,0.05497533,123.94,123.91,0.05105056]
[1766537229964,3.38497533,123.94,123.91,0.00105056]
[1766537230155,3.38497533,123.94,123.85,7.2707]
[1766537230353,3.38497533,123.94,123.84,113.1145]
[1766537230354,3.33,123.94,123.84,210.40750711]
[1766537231249,0.05836802,123.9,123.88,0.05772282]
[1766537237566,0.05836802,123.9,123.84,7.2712]
[1766537237960,3.38836802,123.9,123.84,7.2712]
[1766537238658,3.38836802,123.9,123.86,0.05457923]
[1766537250667,3.38836802,123.9,123.87,7.2699]
[1766537258078,3.38836802,123.9,123.86,0.05457923]
[1766537258079,4.64996607,123.9,123.86,0.00457923]
[1766537258283,3.32,123.87,123.8,113.1443]
[1766537258785,3.32,123.87,123.83,7.2723]
[1766537258988,3.32,123.85,123.79,113.1622]
[1766537259189,0.05368303,123.83,123.81,0.05586202]
[1766537259890,8.303e-05,123.85,123.81,0.05586202]
[1766537260892,0.05923807,123.84,123.81,0.05586202]
[1766537261088,0.05923807,123.84,123.82,7.2726]
[1766537261294,1.26159805,123.89,123.82,113.1343]
[1766537261684,1.26159805,123.91,123.85,7.2709]
[1766537261884,3.53,123.9,123.85,7.2709]
[1766537262394,3.58944689,123.89,123.86,0.06060664]
[1766537264598,4.689e-05,123.89,123.86,7.33100664]
[1766537265696,0.05929739,123.89,123.86,7.33100664]
[1766537266694,0.05929739,123.89,123.86,0.06060664]
[1766537266899,3.53,123.88,123.86,0.00060664]
[1766537285410,3.32,123.87,123.86,0.00060664]
[1766537291208,3.32,123.86,123.8,7.2738]
[1766537292204,0.05362006,123.84,123.82,0.06205192]
[1766537293114,0.05362006,123.84,123.78,2.87381989]
[1766537293710,0.05362006,123.84,123.79,7.2746]
[1766537294105,0.05362006,123.84,123.8,0.05664345]
[1766537295316,0.05362006,123.84,123.8,7.33074345]
[1766537297721,0.05362006,123.84,123.8,0.05664345]
[1766537301321,0.05362006,123.84,123.8,7.33064345]
[1766537304626,0.05362006,123.84,123.8,0.05664345]
[1766537306935,0.05362006,123.84,123.8,7.33074345]
[1766537308429,3.37362006,123.84,123.8,0.05664345]
[1766537311238,3.37362006,123.84,123.8,7.33074345]
[1766537311938,3.37362006,123.84,123.8,0.05664345]
[1766537313637,3.37362006,123.84,123.78,10.14881989]
[1766537313824,3.41,123.83,123.78,2.87381989]
[1766537314528,3.41,123.83,123.79,0.06198276]
[1766537317227,3.57362006,123.84,123.79,0.06198276]
[1766537317737,3.57362006,123.84,123.79,7.33638276]
[1766537317926,0.05362006,123.84,123.79,0.06198276]
[1766537318440,3.52,123.87,123.79,0.06198276]
[1766537318640,3.52,123.87,123.78,113.1687]
[1766537319340,0.05596905,123.84,123.81,0.05687784]
[1766537319539,0.05596905,123.84,123.81,7.33037784]
[1766537323339,3.52,123.88,123.82,7.2728]
[1766537324336,3.52,123.88,123.81,7.2733]
[1766537324536,0.05526055,123.86,123.84,0.05475367]
[1766537327149,3.57526055,123.86,123.79,7.2742]
[1766537327846,3.57526055,123.86,123.8,7.274]
[1766537328037,3.52,123.86,123.8,7.274]
[1766537328238,0.05501284,123.84,123.82,0.0585145]
[1766537332149,3.52,123.86,123.82,0.0585145]
[1766537332546,10.7907,123.86,123.82,0.0585145]
[1766537332855,3.52,123.85,123.78,95.38]
[1766537333744,0.05109199,123.83,123.8,0.05344726]
[1766537334943,3.57109199,123.83,123.8,0.05344726]
[1766537335957,3.57109199,123.83,123.75,95.38]
[1766537336156,3.52,123.83,123.75,95.38]
[1766537337150,3.52,123.83,123.78,0.05952301]
[1766537338156,0.06080789,123.82,123.78,0.05952301]
[1766537339052,0.06080789,123.82,123.78,7.33472301]
[1766537342159,3.52,123.83,123.78,7.33472301]
[1766537343258,0.06127355,123.82,123.78,7.33472301]
[1766537344857,0.00127355,123.82,123.78,0.05952301]
[1766537346560,0.00127355,123.82,123.8,7.2739]
[1766537352165,3.49,123.85,123.8,7.2739]
[1766537353170,0.06059464,123.84,123.81,0.0577971]
[1766537363682,3.55059464,123.84,123.81,0.0577971]
[1766537363889,3.55059464,123.84,123.78,7.2747]
[1766537364893,3.55059464,123.84,123.8,0.05204583]
[1766537399518,3.55059464,123.84,123.77,7.2754]
[1766537400410,3.34,123.82,123.74,1.2627525]
[1766537401008,3.48,123.8,123.73,7.2776]
[1766537401522,0.05916672,123.78,123.75,0.05223854]
[1766537402017,0.05916672,123.78,123.75,7.32913854]
[1766537402323,95.38,123.84,123.75,7.32913854]
[1766537402517,96.6427525,123.84,123.75,7.2769]
[1766537402723,7.2724,123.83,123.75,7.2769]
[1766537403315,0.0566713,123.8,123.74,1.2627525]
[1766537403516,113.0935,123.87,123.77,7.2757]
[1766537403517,8.5344525,123.85,123.77,7.2757]
[1766537404422,3.48,123.84,123.77,7.2757]
[1766537404624,3.53742513,123.82,123.8,0.00195399]
[1766537406621,3.53742513,123.82,123.76,1.2627525]
[1766537406622,3.48,123.8,123.72,4.10477277]
[1766537406823,3.48,123.79,123.72,4.10477277]
[1766537407727,0.05136165,123.77,123.74,0.05337495]
[1766537412031,3.53136165,123.77,123.74,0.00337495]
[1766537421454,1.2627525,123.8,123.74,7.28087495]
[1766537421957,7.2717,123.85,123.75,2.3]
[1766537422150,8.5344525,123.85,123.76,2.3]
[1766537422352,0.05582146,123.82,123.79,0.05749285]
[1766537423454,3.53582146,123.82,123.79,0.05749285]
[1766537423949,0.05582146,123.82,123.79,0.05749285]
[1766537426255,3.48,123.84,123.79,2.35749285]
[1766537427345,0.05224573,123.83,123.79,2.35749285]
[1766537427550,0.05224573,123.83,123.8,7.274]
[1766537430357,3.53224573,123.83,123.79,0.05749285]
[1766537431257,3.53224573,123.83,123.79,7.33199285]
[1766537431662,3.53224573,123.83,123.79,0.05749285]
[1766537438859,3.53224573,123.83,123.78,7.2751]
[1766537439960,3.53224573,123.83,123.79,0.0551009]
[1766537441462,3.53224573,123.83,123.76,9.5759]
[1766537441764,3.53224573,123.83,123.76,2.3]
[1766537442263,3.53224573,123.83,123.78,0.06087667]
[1766537443557,3.48,123.82,123.78,0.00087667]
[1766537444663,3.48,123.81,123.78,0.00087667]
[1766537468691,3.3,123.8,123.78,0.00087667]
[1766537468987,3.35947945,123.8,123.78,0.00087667]
[1766537486192,3.35947945,123.8,123.72,2.8259056]
[1766537486386,3.3,123.8,123.72,2.8259056]
[1766537486891,3.3,123.8,123.72,5.2459056]
[1766537487089,7.2744,123.8,123.73,7.2779]
[1766537487285,3.3,123.77,123.75,0.00057164]
[1766537488191,3.3,123.77,123.71,7.2788]
[1766537489089,3.35884311,123.75,123.73,0.05239375]
[1766537489294,3.35884311,123.75,123.71,7.2788]
[1766537490198,3.35884311,123.75,123.72,0.05355582]
[1766537490593,3.35884311,123.75,123.72,0.00355582]
[1766537502213,9.24819052,123.8,123.72,7.28215582]
[1766537502511,9.24819052,123.8,123.72,7.2786]
[1766537503108,0.0515264,123.77,123.72,7.2786]
[1766537503315,0.0515264,123.77,123.75,0.05777774]
[1766537503511,0.0515264,123.77,123.72,7.2786]
[1766537504113,0.0515264,123.77,123.7,7.2796]
[1766537504310,3.24,123.76,123.7,7.2796]
[1766537504708,0.06173081,123.74,123.7,7.2796]
[1766537506519,0.06173081,123.74,123.71,7.2794]
[1766537510018,0.06173081,123.74,123.71,10.6694]
[1766537510224,3.24,123.77,123.72,7.2787]
[1766537510724,3.24,123.77,123.73,7.2781]
[1766537511120,0.05353908,123.76,123.74,0.05320381]
[1766537511628,3.29353908,123.76,123.74,0.00320381]
[1766537513626,3.29353908,123.76,123.69,3.39]
[1766537513831,3.24,123.76,123.69,3.39]
[1766537514522,0.06068377,123.74,123.69,3.39]
[1766537514727,0.06068377,123.74,123.7,7.28]
[1766537515836,0.06068377,123.74,123.71,10.6693]
[1766537521741,0.00068377,123.74,123.72,10.6287]
[1766537526237,3.24,123.77,123.72,10.6287]
[1766537526740,7.2749,123.79,123.73,3.35]
[1766537526945,106.0441,123.81,123.74,3.35]
[1766537527240,0.05669374,123.79,123.76,0.05611501]
[1766537541363,3.40669374,123.79,123.73,3.35]
[1766537542260,10.68139374,123.79,123.73,10.6282]
[1766537544560,3.35,123.78,123.73,3.35]
[1766537556075,3.35,123.78,123.73,10.6282]
[1766537566891,3.35,123.78,123.74,10.6476]
[1766537567182,0.06053234,123.77,123.74,10.6476]
[1766537568184,0.06053234,123.77,123.75,3.37]
[1766537568380,3.26,123.8,123.75,3.4242945]
[1766537569277,0.05466517,123.79,123.75,3.4242945]
[1766537570594,0.05466517,123.79,123.75,10.7010945]
[1766537570795,0.05466517,123.79,123.76,3.37]
[1766537571295,95.42,123.81,123.76,3.37]
[1766537572389,0.05369594,123.8,123.76,3.37]
[1766537572695,0.05369594,123.8,123.77,7.2758]
[1766537573094,0.05369594,123.8,123.77,10.6458]
[1766537577896,0.05369594,123.8,123.77,3.37]
[1766537578793,0.05369594,123.8,123.75,3.4242945]
[1766537579702,0.05369594,123.8,123.75,10.7011945]
[1766537579902,0.05369594,123.8,123.76,3.37]
[1766537588103,0.05369594,123.8,123.76,10.6463]
[1766537588294,0.05369594,123.8,123.77,3.2]
[1766537589510,0.00369594,123.8,123.78,3.2]
[1766537590595,0.00369594,123.8,123.78,10.4752]
[1766537590798,0.00369594,123.8,123.78,10.53650504]
[1766537599514,0.00369594,123.8,123.78,3.26130504]
[1766537601116,0.00369594,123.8,123.78,0.06130504]
[1766537607913,0.00369594,123.8,123.75,3.2]
[1766537609023,0.00369594,123.8,123.76,0.06173943]
[1766537610221,0.00369594,123.8,123.76,3.26173943]
[1766537611518,3.19369594,123.8,123.76,0.06173943]
[1766537613125,3.19369594,123.8,123.74,3.34]
[1766537614018,3.19369594,123.8,123.76,0.05713225]
[1766537614419,3.48,123.79,123.76,0.05713225]
[1766537620728,0.00369594,123.8,123.76,3.25713225]
[1766537622225,0.00369594,123.8,123.77,3.2]
[1766537627435,0.00369594,123.8,123.76,7.33353225]
[1766537627626,0.00369594,123.8,123.76,10.53353225]
[1766537629137,0.00369594,123.8,123.77,3.2]
[1766537642332,10.4923,123.84,123.77,3.2]
[1766537642537,10.4923,123.84,123.78,3.47]
[1766537642538,7.2723,123.84,123.78,3.47]
[1766537642840,109.12785118,123.86,123.78,3.47]
[1766537643542,0.05311211,123.83,123.81,0.05742415]
[1766537643929,3.27311211,123.83,123.78,3.47]
[1766537644531,0.05311211,123.83,123.78,3.47]
[1766537645041,3.27311211,123.83,123.75,1.26330753]
[1766537645242,0.06063791,123.8,123.76,3.47]
[1766537646541,0.00063791,123.8,123.76,3.47]
[1766537647543,0.00063791,123.8,123.77,3.53066138]
[1766537654544,3.22063791,123.8,123.77,0.06066138]
[1766537655247,0.00063791,123.8,123.77,0.06066138]
[1766537660664,0.00063791,123.8,123.77,3.53066138]
[1766537670265,135.12830117,123.9,123.77,3.53066138]
[1766537670266,113.0529,123.92,123.81,3.47]
[1766537670569,113.0529,123.92,123.79,114.42150753]
[1766537670570,3.22,123.94,123.85,3.47]
[1766537670762,4.48330753,123.94,123.87,3.47]
[1766537670963,3.22,123.94,123.87,3.47]
[1766537671175,4.66330753,123.96,123.88,3.22]
[1766537671474,4.66330753,123.95,123.89,0.05964449]
[1766537671673,4.66330753,123.95,123.88,3.22]
[1766537671674,3.4,123.94,123.88,3.22]
[1766537672476,4.66330753,123.91,123.84,3.22]
[1766537673064,3.4,123.9,123.84,3.22]
[1766537673263,3.4,123.88,123.81,10.4934]
[1766537673464,0.06037775,123.87,123.84,0.06105919]
[1766537675381,0.06037775,123.87,123.84,3.28105919]
[1766537677478,0.06037775,123.87,123.84,0.06105919]
[1766537677674,4.72368528,123.87,123.84,0.06105919]
[1766537677880,3.4,123.86,123.8,3.22]
[1766537678783,0.05662835,123.84,123.8,3.22]
[1766537686889,1.26330753,123.85,123.8,3.22]
[1766537687886,0.05908938,123.84,123.81,0.05676375]
[1766537688590,0.05908938,123.84,123.81,3.26676375]
[1766537688790,3.4,123.86,123.81,3.26676375]
[1766537688990,3.48,123.88,123.81,3.26676375]
[1766537689189,3.48,123.88,123.82,3.21]
[1766537689793,3.537389,123.86,123.8,3.21]
[1766537690793,3.537389,123.86,123.82,0.05980426]
[1766537700298,0.057389,123.86,123.82,3.26980426]
[1766537700493,0.057389,123.86,123.82,10.54260426]
[1766537702395,3.37,123.89,123.83,3.45]
[1766537703399,0.05141355,123.87,123.85,0.05361407]
[1766537703698,3.37,123.89,123.85,0.05361407]
[1766537704601,0.05473778,123.88,123.85,0.05361407]
[1766537706900,3.42473778,123.88,123.85,0.05361407]
[1766537708800,0.05473778,123.88,123.85,0.05361407]
[1766537711500,3.37,123.92,123.86,3.45]
[1766537711697,3.37,123.94,123.87,3.45]
[1766537711892,3.37,123.94,123.88,3.45]
[1766537712494,0.05983579,123.92,123.9,0.05966331]
[1766537712895,0.05983579,123.92,123.87,10.01808621]
[1766537713094,3.42983579,123.92,123.86,13.46808621]
[1766537714202,3.42983579,123.92,123.88,0.05399466]
[1766537725807,0.05983579,123.92,123.88,3.50399466]
[1766537732920,7.32693579,123.92,123.88,3.50399466]
[1766537733126,10.73693579,123.92,123.88,0.05399466]
[1766537733326,3.41,123.91,123.86,10.01808621]
[1766537733524,3.41,123.91,123.85,10.01808621]
[1766537733722,3.41,123.91,123.84,3.34]
[1766537734426,0.0590844,123.89,123.86,0.05128257]
[1766537748856,3.3890844,123.89,123.84,10.05600509]
[1766537749553,10.6579844,123.89,123.83,3.25]
[1766537749952,10.6579844,123.89,123.85,0.05329178]
[1766537750744,3.3890844,123.89,123.85,0.05329178]
[1766537752453,98.67,123.92,123.85,3.30329178]
[1766537753047,98.67,123.92,123.85,10.57429178]
[1766537753546,0.05093159,123.9,123.85,10.57429178]
[1766537754548,0.05093159,123.9,123.86,3.25]
[1766537759160,0.00093159,123.9,123.86,10.5205]
[1766537759350,95.34,123.92,123.87,3.25]
[1766537759552,3.33,123.94,123.87,3.25]
[1766537760258,10.5959,123.94,123.88,3.25]
[1766537760457,0.05140264,123.92,123.9,0.05133289]
[1766537760959,3.32140264,123.92,123.9,0.00133289]
[1766537761148,3.32140264,123.92,123.87,3.25]
[1766537761561,0.05140264,123.92,123.87,10.5199]
[1766537761860,0.05140264,123.92,123.88,3.25]
[1766537762061,0.05140264,123.92,123.89,0.05560532]
[1766537764363,4.53197567,123.91,123.86,3.25]
[1766537765364,4.53197567,123.91,123.87,0.06208203]
[1766537765560,11.79967567,123.91,123.87,0.06208203]
[1766537768162,10.5377,123.91,123.87,0.06208203]
[1766537768364,11.79967567,123.91,123.87,0.06208203]
[1766537768868,10.5377,123.91,123.87,0.06208203]
[1766537769167,11.79967567,123.91,123.87,0.06208203]
[1766537770766,1.26197567,123.91,123.87,3.31208203]
[1766537771266,1.26197567,123.91,123.87,0.06208203]
[1766537771267,4.53197567,123.91,123.87,0.06208203]
[1766537772669,11.79967567,123.91,123.87,0.06208203]
[1766537773667,4.53197567,123.91,123.87,0.06208203]
[1766537773867,1.26197567,123.91,123.87,0.06208203]
[1766537774455,4.53197567,123.91,123.87,0.06208203]
[1766537777960,3.27,123.9,123.84,18.36271842]
[1766537778356,4.53197567,123.89,123.84,3.25]
[1766537778960,0.05559391,123.88,123.84,3.25]
[1766537779571,0.05559391,123.88,123.83,15.11271842]
[1766537779867,3.32559391,123.88,123.82,25.63551842]
[1766537787672,3.32559391,123.88,123.82,18.36271842]
[1766537788069,3.32559391,123.88,123.83,3.25]
[1766537791976,3.32559391,123.88,123.83,18.36271842]
[1766537792978,4.58756958,123.88,123.83,3.25]
[1766537796985,4.58756958,123.88,123.83,10.5223]
[1766537797380,3.24,123.96,123.84,15.11271842]
[1766537797586,3.24,123.94,123.88,3.37]
[1766537798179,95.36,123.97,123.92,3.37]
[1766537798374,0.05782812,123.96,123.93,0.0587777]
[1766537798580,3.24,123.98,123.93,3.4287777]
[1766537799488,0.05294669,123.97,123.93,3.4287777]
[1766537800689,0.05294669,123.97,123.93,0.0587777]
[1766537800984,3.24,123.96,123.89,3.37]
[1766537802082,0.05832544,123.94,123.91,0.06206966]
[1766537803593,3.29832544,123.94,123.91,0.00206966]
[1766537804093,3.29832544,123.94,123.87,3.37]
[1766537804890,3.29832544,123.94,123.87,10.6398]
[1766537806696,3.29832544,123.94,123.88,10.6392]
[1766537806894,102.6052,123.96,123.88,10.6392]
[1766537806895,0.00308687,123.92,123.89,3.37]
[1766537807094,1.26197567,123.97,123.89,3.37]
[1766537807293,3.24,123.98,123.91,3.37]
[1766537807888,3.24,123.98,123.92,3.37]
[1766537808189,0.05688842,123.96,123.94,0.05723852]
[1766537811200,98.58,124.0,123.94,0.05723852]
[1766537812094,0.05872957,123.98,123.94,0.05723852]
[1766537812304,0.05872957,123.98,123.94,3.42723852]
[1766537816397,3.29872957,123.98,123.94,0.05723852]
[1766537821001,3.21,123.97,123.9,3.33]
[1766537821999,0.05505882,123.95,123.92,0.05123483]
[1766537824505,0.05505882,123.95,123.87,98.1732333]
[1766537824506,3.26505882,123.95,123.88,3.33]
[1766537824702,3.21,123.95,123.88,3.33]
[1766537825510,0.06014572,123.93,123.88,3.33]
[1766537828206,0.00014572,123.93,123.89,3.33]
[1766537829303,0.00014572,123.93,123.9,3.38104809]
[1766537831510,3.21014572,123.93,123.82,15.11271842]
[1766537831714,3.21,123.9,123.83,3.33]
[1766537832611,98.51,123.92,123.83,3.33]
[1766537833013,105.7772,123.92,123.84,10.6015]
[1766537833512,3.21,123.91,123.84,10.6015]
[1766537833713,0.05385511,123.89,123.86,0.05920383]
[1766537857523,0.05385511,123.89,123.86,3.31920383]
[1766537862629,0.00385511,123.89,123.86,3.31920383]
[1766537865731,3.41,123.92,123.87,3.26]
[1766537866337,102.6065,123.93,123.87,3.26]
[1766537866525,7.2649,123.96,123.89,7.2682]
[1766537866720,0.05507978,123.94,123.91,0.05777672]
[1766537866926,3.46507978,123.94,123.85,110.45271842]
[1766537867226,3.41,123.94,123.85,95.34]
[1766537867425,3.41,123.93,123.85,7.2706]
[1766537867825,0.05304212,123.9,123.88,0.05445116]
[1766537871336,0.00304212,123.9,123.88,0.05445116]
[1766537873733,3.41,123.94,123.88,7.32375116]
[1766537874438,3.41,123.94,123.88,0.05445116]
[1766537874641,0.05477399,123.92,123.88,0.05445116]
[1766537876935,3.46477399,123.92,123.88,0.05445116]
[1766537877240,3.41,123.91,123.88,0.05445116]
[1766537880543,1.31561264,123.92,123.88,0.05445116]
[1766537882137,4.75561264,123.92,123.88,0.05445116]
[1766537883440,3.49477399,123.92,123.88,0.05445116]
[1766537890754,3.44,123.9,123.88,0.00445116]
[1766537891253,3.49477399,123.92,123.88,0.00445116]
[1766537896756,4.75561264,123.92,123.88,0.00445116]
[1766537897054,1.26083865,123.9,123.84,15.11271842]
[1766537897258,3.44,123.89,123.83,15.11271842]
[1766537897455,3.44,123.89,123.82,15.11271842]
[1766537898159,0.05931298,123.87,123.84,0.05151271]
[1766537898547,0.05931298,123.87,123.84,7.32281271]
[1766537902861,3.44,123.89,123.84,7.32281271]
[1766537903762,0.05683057,123.88,123.84,7.32281271]
[1766537911255,0.05683057,123.88,123.85,7.2709]
[1766537911456,3.2,123.91,123.84,1.31235136]
[1766537911652,3.2,123.91,123.84,96.65235136]
[1766537912062,3.2,123.91,123.84,111.76506978]
[1766537912568,0.05552607,123.89,123.86,7.2705]
[1766537912767,0.05552607,123.89,123.86,7.33098979]
[1766537916067,0.05552607,123.89,123.86,0.06048979]
[1766537916569,3.52552607,123.89,123.86,0.00048979]
[1766537918572,4.78636472,123.89,123.86,0.00048979]
[1766537919471,3.47,123.88,123.86,0.00048979]
[1766537921969,3.47,123.88,123.82,15.11271842]
[1766537922162,3.47,123.88,123.81,15.11271842]
[1766537922467,3.47,123.88,123.8,96.60083865]
[1766537923076,0.06000848,123.85,123.83,0.06045269]
[1766537926877,3.53000848,123.85,123.83,0.06045269]
[1766537927080,3.53000848,123.85,123.83,0.00045269]
[1766537929882,0.06000848,123.85,123.83,0.00045269]
[1766537930379,0.06000848,123.85,123.83,7.27275269]
[1766537930584,3.47,123.87,123.83,7.27275269]
[1766537931587,3.52344632,123.86,123.83,0.00045269]
[1766537934686,0.00344632,123.86,123.83,0.00045269]
[1766537946204,3.26344632,123.86,123.83,0.00045269]
[1766537955316,98.6,123.91,123.83,0.00045269]
[1766537955617,98.6,123.91,123.82,15.11271842]
[1766537955816,3.26,123.9,123.82,15.11271842]
[1766537956516,0.05359601,123.87,123.85,0.05143864]
[1766537959614,3.26,123.9,123.85,0.05143864]
[1766537960525,0.05660129,123.89,123.85,0.05143864]
[1766537960923,3.31660129,123.89,123.85,0.05143864]
[1766537961720,3.31660129,123.89,123.85,0.00143864]
[1766537963924,3.26,123.88,123.8,22.38641842]
[1766537964632,3.26,123.88,123.81,7.2734]
[1766537965033,0.05963748,123.86,123.83,0.059354]
[1766537966426,3.31963748,123.86,123.83,0.059354]
[1766537967829,3.31963748,123.86,123.8,15.11271842]
[1766537968432,3.31963748,123.86,123.8,22.38671842]
[1766537968834,3.31963748,123.86,123.82,0.05952763]
[1766537971036,0.05963748,123.86,123.82,0.05952763]
[1766537971922,0.05963748,123.86,123.82,15.17224605]
[1766537975233,3.38963748,123.86,123.82,15.17224605]
[1766537975433,3.38963748,123.86,123.82,0.05952763]
[1766537992247,3.38963748,123.86,123.81,15.11271842]
[1766537992548,3.38963748,123.86,123.8,15.11271842]
[1766537993448,3.38963748,123.86,123.82,0.00212078]
[1766537993643,10.66023748,123.86,123.82,0.00212078]
[1766537993850,3.33,123.85,123.82,0.00212078]
[1766538002759,3.48,123.89,123.82,0.00212078]
[1766538002951,3.48,123.89,123.83,15.11271842]
[1766538003252,3.48,123.89,123.84,7.2715]
[1766538003859,0.05716995,123.88,123.85,0.05187831]
[1766538004858,3.53716995,123.88,123.83,8.03459673]
[1766538005053,3.53716995,123.88,123.82,7.2726]
[1766538005249,3.48,123.87,123.8,1.26253812]
[1766538005846,0.06127257,123.85,123.8,1.26253812]
[1766538006050,3.54127257,123.85,123.8,1.26253812]
[1766538006453,3.54127257,123.85,123.8,7.2737]
[1766538008766,3.54127257,123.85,123.78,8.53733812]
[1766538009068,3.54127257,123.85,123.78,1.26253812]
[1766538010568,3.54127257,123.85,123.79,7.2746]
[1766538014372,3.54127257,123.85,123.8,7.274]
[1766538024078,3.54127257,123.85,123.81,7.2735]
[1766538024376,0.05806446,123.84,123.81,7.2735]